[Event "EYCC Girls-U16 2019"]
[Site "Bratislava"]
[Date "2019.08.02"]
[Round "1.16"]
[White "Mkrtchyan, Mariam"]
[Black "Esadze, Tamari"]
[Result "0-1"]
[ECO "D02"]
[WhiteElo "1981"]
[BlackElo "1997"]
[Annotator "NA"]
[PlyCount "86"]
[EventDate "2019.08.02"]
[EventType "swiss"]
[EventCountry "SVK"]
[SourceTitle "playchess.com"]
[Source "ChessBase"]
[SourceQuality "1"]
[TimeControl "40/5400+30:1800+30"]

1. d4 {[%emt 0:00:00]} d5 {[%emt 0:00:00]} 2. Nf3 {[%emt 0:00:00]} Nf6 {[%emt 0:00:00]} 3. g3 {[%emt 0:00:49]} e6 {[%emt 0:01:03]} 4. Bg2 {[%emt 0:00:04]} Be7 {[%emt 0:00:21]} 5. O-O {[%emt 0:00:05]} O-O {[%emt 0:00:14]} 6. c4 {[%emt 0:04:39]} dxc4 {[%emt 0:04:50]} 7. Qc2 {[%emt 0:00:50]} a6 {[%emt 0:00:48]} 8. a4 {[%emt 0:00:08]} Bd7 {[%emt 0:01:14]} 9. Qxc4 {[%emt 0:00:48]} Bc6 {[%emt 0:03:34]} 10. Bf4 {[%emt 0:01:44]} Nd5 {[%emt 0:09:11]} 11. Bd2 {[%emt 0:06:20]} Nd7 {[%emt 0:13:01]} 12. Nc3 {[%emt 0:07:40]} N7b6 {[%emt 0:03:26]} 13. Qb3 {[%emt 0:02:16]} Nxc3 {[%emt 0:02:22]} 14. Bxc3 {[%emt 0:03:38]} Bd5 {[%emt 0:02:29]} 15. Qc2 {[%emt 0:01:02]} f5 {[%emt 0:01:10]} 16. Rfd1 {[%emt 0:18:43]} Be4 {[%emt 0:05:31]} 17. Qc1 {[%emt 0:08:07]} Nd5 {[%emt 0:10:59]} 18. Bh3 {[%emt 0:14:00]} Qe8 {[%emt 0:07:34]} 19. Nd2 {[%emt 0:09:32]} Qh5 {[%emt 0:06:48]} 20. Bf1 {[%emt 0:02:27]} Bg5 {[%emt 0:09:33]} 21. f3 {[%emt 0:08:23]} Ne3 {[%emt 0:05:11]} 22. Re1 {[%emt 0:08:43]} Ng4 {[%emt 0:03:29]} 23. h3 {[%emt 0:00:49]} Be3+ {[%emt 0:00:15]} 24. Kg2 {[%emt 0:00:25]} Nf2 {[%emt 0:01:27]} 25. Kh2 {[%emt 0:00:42]} f4 {[%emt 0:01:47]} 26. Nxe4 Bxc1 27. Nxf2 {[%emt 0:00:50]} fxg3+ {[%emt 0:00:35]} 28. Kxg3 {[%emt 0:00:04]} Bf4+ {[%emt 0:00:32]} 29. Kg2 {[%emt 0:00:05]} Qg6+ {[%emt 0:01:03]} 30. Ng4 {[%emt 0:00:17]} h5 {[%emt 0:00:09]} 31. e3 {[%emt 0:00:21]} Bd6 {[%emt 0:00:23]} 32. Be2 {[%emt 0:00:45]} hxg4 {[%emt 0:00:07]} 33. hxg4 {[%emt 0:00:03]} c5 {[%emt 0:02:04]} 34. Rad1 {[%emt 0:00:24]} cxd4 {[%emt 0:01:30]} 35. Bxd4 {[%emt 0:00:03]} e5 {[%emt 0:00:11]} 36. Bc4+ {[%emt 0:00:19]} Rf7 {[%emt 0:00:03]} 37. Bc3 {[%emt 0:01:58]} Kf8 {[%emt 0:01:18]} 38. Bxf7 {[%emt 0:00:09]} Kxf7 {[%emt 0:00:01]} 39. Rd5 {[%emt 0:01:08]} Rh8 {[%emt 0:01:14]} 40. Bxe5 {[%emt 0:00:00]} Bxe5 {[%emt 0:00:00]} 41. Rc1 {[%emt 0:01:44]} Rh2+ {[%emt 0:03:33]} 42. Kg1 {[%emt 0:00:06]} Qh6 {[%emt 0:00:23]} 43. Rxe5 {[%emt 0:00:22]} Rh1+ {[%emt 0:00:04]} 0-1

[Event "EYCC Girls-U16 2019"]
[Site "Bratislava"]
[Date "2019.08.02"]
[Round "1.17"]
[White "Mazzini, Katarina"]
[Black "Radikovic, Anamarija"]
[Result "0-1"]
[ECO "B30"]
[WhiteElo "1714"]
[BlackElo "2021"]
[Annotator "NA"]
[PlyCount "64"]
[EventDate "2019.08.02"]
[EventType "swiss"]
[EventCountry "SVK"]
[SourceTitle "playchess.com"]
[Source "ChessBase"]
[SourceQuality "1"]
[TimeControl "40/5400+30:1800+30"]

1. e4 {[%emt 0:00:00]} c5 {[%emt 0:00:00]} 2. Nf3 {[%emt 0:00:00]} Nc6 {[%emt 0:00:00]} 3. Bb5 {[%emt 0:00:00]} e6 {[%emt 0:00:00]} 4. O-O {[%emt 0:00:20]} Nge7 {[%emt 0:01:16]} 5. Nc3 {[%emt 0:01:01]} g6 {[%emt 0:01:07]} 6. d4 {[%emt 0:03:17]} cxd4 {[%emt 0:00:26]} 7. Nxd4 {[%emt 0:00:31]} Bg7 {[%emt 0:01:42]} 8. Be3 {[%emt 0:03:30]} O-O {[%emt 0:00:57]} 9. Qd2 {[%emt 0:01:39]} Re8 {[%emt 0:01:28]} 10. Rad1 {[%emt 0:05:03]} a6 {[%emt 0:03:38]} 11. Be2 {[%emt 0:01:35]} Qc7 {[%emt 0:05:08]} 12. f4 {[%emt 0:06:07]} d5 {[%emt 0:18:21]} 13. exd5 {[%emt 0:07:53]} Nxd5 {[%emt 0:00:25]} 14. Nxd5 {[%emt 0:01:58]} exd5 {[%emt 0:00:07]} 15. Bf3 {[%emt 0:06:09]} Be6 {[%emt 0:12:49]} 16. f5 {[%emt 0:13:14]} Nxd4 {[%emt 0:12:02]} 17. Bxd4 {[%emt 0:02:12]} Bxf5 {[%emt 0:00:06]} 18. Bxg7 {[%emt 0:07:52]} Kxg7 {[%emt 0:00:04]} 19. Bxd5 {[%emt 0:01:30]} Rad8 {[%emt 0:04:44]} 20. c4 {[%emt 0:07:50]} Kg8 {[%emt 0:01:18]} 21. Qg5 {[%emt 0:03:03]} Qc5+ {[%emt 0:06:11]} 22. Kh1 {[%emt 0:00:48]} Be6 {[%emt 0:00:46]} 23. b3 {[%emt 0:10:11]} Bxd5 {[%emt 0:10:48]} 24. cxd5 {[%emt 0:02:00]} Qd6 {[%emt 0:02:28]} 25. Qh4 {[%emt 0:06:05]} Re5 {[%emt 0:03:14]} 26. Rf6 {[%emt 0:03:06]} Rxd5 {[%emt 0:01:23]} 27. Rdf1 {[%emt 0:03:54]} Qc7 {[%emt 0:00:36]} 28. Qf2 {[%emt 0:02:00]} R8d7 {[%emt 0:00:21]} 29. Qf3 {[%emt 0:00:57]} Rd2 {[%emt 0:00:37]} 30. h4 {[%emt 0:00:30]} R7d4 {[%emt 0:01:34]} 31. Qh3 {[%emt 0:00:15]} R2d3 {[%emt 0:00:35]} 32. g3 {[%emt 0:00:40]} Qxg3 {[%emt 0:01:03]} 0-1

[Event "EYCC Girls-U16 2019"]
[Site "Bratislava"]
[Date "2019.08.02"]
[Round "1.18"]
[White "Afanasieva, Alexandra"]
[Black "Mihailova, Alina"]
[Result "1-0"]
[ECO "C92"]
[WhiteElo "2085"]
[BlackElo "1777"]
[Annotator "NA"]
[PlyCount "115"]
[EventDate "2019.08.02"]
[EventType "swiss"]
[EventCountry "SVK"]
[SourceTitle "playchess.com"]
[Source "ChessBase"]
[SourceQuality "1"]
[TimeControl "40/5400+30:1800+30"]

1. e4 {[%emt 0:00:00]} e5 {[%emt 0:00:00]} 2. Nf3 {[%emt 0:00:00]} Nc6 {[%emt 0:00:00]} 3. Bb5 {[%emt 0:00:00]} a6 {[%emt 0:00:00]} 4. Ba4 {[%emt 0:00:00]} Nf6 {[%emt 0:00:00]} 5. O-O {[%emt 0:00:00]} b5 {[%emt 0:00:07]} 6. Bb3 {[%emt 0:00:00]} Be7 {[%emt 0:00:14]} 7. Re1 {[%emt 0:00:14]} d6 {[%emt 0:00:14]} 8. c3 {[%emt 0:00:25]} O-O {[%emt 0:00:13]} 9. h3 {[%emt 0:00:15]} Bb7 {[%emt 0:00:29]} 10. d4 {[%emt 0:00:59]} Nd7 {[%emt 0:00:22]} 11. Nbd2 {[%emt 0:01:54]} exd4 {[%emt 0:00:25]} 12. cxd4 {[%emt 0:00:35]} Bf6 {[%emt 0:00:11]} 13. Nf1 {[%emt 0:01:22]} Na5 {[%emt 0:00:44]} 14. Bc2 {[%emt 0:00:15]} Re8 {[%emt 0:00:08]} 15. Ng3 {[%emt 0:01:53]} g6 {[%emt 0:00:14]} 16. Bf4 {[%emt 0:04:42]} c5 {[%emt 0:19:04]} 17. Rc1 {[%emt 0:29:52]} Nc6 {[%emt 0:21:01]} 18. Be3 {[%emt 0:13:38]} Rc8 {[%emt 0:07:28]} 19. Bb1 {[%emt 0:06:07]} Na5 {[%emt 0:22:05]} 20. b3 {[%emt 0:03:27]} c4 {[%emt 0:06:47]} 21. b4 {[%emt 0:11:56]} Nc6 {[%emt 0:00:14]} 22. a3 {[%emt 0:00:12]} a5 {[%emt 0:00:31]} 23. d5 {[%emt 0:02:26]} Ncb8 {[%emt 0:03:32]} 24. Nd4 {[%emt 0:00:55]} Bxd4 {[%emt 0:04:40]} 25. Bxd4 {[%emt 0:00:20]} axb4 {[%emt 0:05:01]} 26. axb4 {[%emt 0:00:09]} Nf6 {[%emt 0:01:28]} 27. Bc3 {[%emt 0:04:09]} Nbd7 {[%emt 0:00:38]} 28. Re3 {[%emt 0:03:49]} Ne5 {[%emt 0:06:28]} 29. Ne2 {[%emt 0:03:17]} Ra8 {[%emt 0:01:31]} 30. Nd4 {[%emt 0:00:37]} Ba6 {[%emt 0:00:32]} 31. Qe2 {[%emt 0:04:36]} Ned7 {[%emt 0:00:34]} 32. f4 {[%emt 0:01:14]} Qc8 {[%emt 0:00:30]} 33. Qf3 {[%emt 0:00:54]} Qb7 {[%emt 0:00:27]} 34. Kh1 {[%emt 0:00:56]} Rab8 {[%emt 0:00:24]} 35. Nc6 {[%emt 0:01:27]} Rbc8 {[%emt 0:00:21]} 36. Rce1 {[%emt 0:01:33]} Rxc6 {[%emt 0:00:46]} 37. dxc6 {[%emt 0:00:02]} Qxc6 {[%emt 0:00:01]} 38. Qf2 {[%emt 0:01:55]} Bb7 {[%emt 0:00:19]} 39. Qb2 {[%emt 0:00:58]} Nh5 {[%emt 0:00:47]} 40. Qf2 {[%emt 0:00:00]} Nhf6 {[%emt 0:00:00]} 41. Qb2 {[%emt 0:02:58]} Nh5 {[%emt 0:03:01]} 42. Rf3 {[%emt 0:00:25]} d5 {[%emt 0:03:44]} 43. e5 {[%emt 0:02:41]} Ng7 {[%emt 0:03:15]} 44. f5 {[%emt 0:02:45]} gxf5 {[%emt 0:04:19]} 45. Rg3 {[%emt 0:02:08]} Qe6 {[%emt 0:02:15]} 46. Bxf5 {[%emt 0:09:02]} Qxf5 {[%emt 0:00:42]} 47. e6 {[%emt 0:00:43]} f6 {[%emt 0:05:12]} 48. exd7 {[%emt 0:00:47]} Rxe1+ {[%emt 0:00:15]} 49. Bxe1 {[%emt 0:00:16]} Qxd7 {[%emt 0:00:22]} 50. Qxf6 {[%emt 0:01:36]} d4 {[%emt 0:00:50]} 51. Bf2 {[%emt 0:00:41]} Be4 {[%emt 0:01:16]} 52. Bxd4 {[%emt 0:00:57]} Bg6 {[%emt 0:00:09]} 53. Rf3 {[%emt 0:02:36]} Qf7 {[%emt 0:00:53]} 54. Qe5 {[%emt 0:03:22]} Qd7 {[%emt 0:00:47]} 55. h4 {[%emt 0:01:43]} Qb7 {[%emt 0:06:48]} 56. Bc5 {[%emt 0:01:14]} Bf7 {[%emt 0:00:56]} 57. Rg3 {[%emt 0:02:01]} Bg6 {[%emt 0:01:00]} 58. h5 {[%emt 0:00:44]} 1-0

[Event "EYCC Girls-U16 2019"]
[Site "Bratislava"]
[Date "2019.08.02"]
[Round "1.19"]
[White "De Zoeten, Cato"]
[Black "Hercog, Nusa"]
[Result "0-1"]
[ECO "B40"]
[WhiteElo "1684"]
[BlackElo "2053"]
[Annotator "NA"]
[PlyCount "86"]
[EventDate "2019.08.02"]
[EventType "swiss"]
[EventCountry "SVK"]
[SourceTitle "playchess.com"]
[Source "ChessBase"]
[SourceQuality "1"]
[TimeControl "40/5400+30:1800+30"]

1. e4 {[%emt 0:00:00]} c5 {[%emt 0:00:00]} 2. Nf3 {[%emt 0:00:00]} e6 {[%emt 0:00:00]} 3. d4 {[%emt 0:00:00]} cxd4 {[%emt 0:00:00]} 4. Nxd4 {[%emt 0:00:00]} Nf6 {[%emt 0:00:00]} 5. Nc3 {[%emt 0:00:10]} Nc6 {[%emt 0:00:14]} 6. Be3 {[%emt 0:04:51]} Bb4 {[%emt 0:00:34]} 7. f3 {[%emt 0:07:21]} d5 {[%emt 0:01:30]} 8. Bb5 {[%emt 0:12:48]} Bd7 {[%emt 0:11:19]} 9. O-O {[%emt 0:13:36]} e5 {[%emt 0:18:44]} 10. Nxd5 {[%emt 0:16:20]} exd4 {[%emt 0:01:52]} 11. Bg5 {[%emt 0:02:33]} Bc5 {[%emt 0:11:52]} 12. Qe1 {[%emt 0:09:30]} Be6 {[%emt 0:10:17]} 13. Kh1 {[%emt 0:11:14]} Kf8 {[%emt 0:04:26]} 14. Bc4 {[%emt 0:08:45]} Bxd5 {[%emt 0:05:17]} 15. Bxd5 {[%emt 0:01:29]} Qd6 {[%emt 0:03:41]} 16. Bb3 {[%emt 0:02:03]} h6 {[%emt 0:02:47]} 17. Bh4 {[%emt 0:00:37]} Re8 {[%emt 0:01:18]} 18. Rd1 {[%emt 0:01:02]} Qe5 {[%emt 0:01:42]} 19. Qe2 {[%emt 0:02:18]} a6 {[%emt 0:04:40]} 20. Qc4 {[%emt 0:01:51]} Qe7 {[%emt 0:00:09]} 21. Rfe1 {[%emt 0:02:17]} b5 {[%emt 0:01:41]} 22. Qf1 {[%emt 0:00:43]} g5 {[%emt 0:01:01]} 23. Bf2 {[%emt 0:00:23]} Kg7 {[%emt 0:01:19]} 24. a4 {[%emt 0:01:04]} Rb8 {[%emt 0:02:27]} 25. axb5 {[%emt 0:00:26]} axb5 {[%emt 0:00:07]} 26. Bg3 {[%emt 0:00:36]} Rb6 {[%emt 0:01:16]} 27. e5 {[%emt 0:00:23]} Nh5 {[%emt 0:02:12]} 28. e6 {[%emt 0:00:49]} Nxg3+ {[%emt 0:00:17]} 29. hxg3 {[%emt 0:00:01]} f6 {[%emt 0:03:08]} 30. f4 {[%emt 0:01:05]} Na5 {[%emt 0:02:17]} 31. Ba2 {[%emt 0:00:30]} Rd8 {[%emt 0:00:16]} 32. f5 {[%emt 0:00:37]} Nc4 {[%emt 0:02:03]} 33. Qf3 {[%emt 0:00:36]} Ne3 {[%emt 0:05:33]} 34. Rc1 {[%emt 0:00:17]} Qb7 {[%emt 0:00:25]} 35. Qf2 {[%emt 0:00:38]} b4 {[%emt 0:01:38]} 36. Bb3 {[%emt 0:00:17]} Qe4 {[%emt 0:00:29]} 37. Ra1 {[%emt 0:00:21]} Rb7 {[%emt 0:00:46]} 38. Ra5 {[%emt 0:00:38]} Rc7 {[%emt 0:00:29]} 39. c3 {[%emt 0:00:35]} bxc3 {[%emt 0:00:42]} 40. bxc3 {[%emt 0:00:00]} Qxf5 {[%emt 0:00:00]} 41. Qxf5 {[%emt 0:01:57]} Nxf5 {[%emt 0:00:40]} 42. g4 {[%emt 0:00:18]} Ne3 {[%emt 0:01:04]} 43. Ba4 {[%emt 0:04:17]} Kf8 {[%emt 0:03:31]} 0-1

[Event "EYCC Girls-U16 2019"]
[Site "Bratislava"]
[Date "2019.08.02"]
[Round "1.20"]
[White "Juhasz, Judit"]
[Black "Villanyi, Alexia"]
[Result "1-0"]
[ECO "B33"]
[WhiteElo "2050"]
[BlackElo "1762"]
[Annotator "NA"]
[PlyCount "79"]
[EventDate "2019.08.02"]
[EventType "swiss"]
[EventCountry "SVK"]
[SourceTitle "playchess.com"]
[Source "ChessBase"]
[SourceQuality "1"]
[TimeControl "40/5400+30:1800+30"]

1. e4 {[%emt 0:00:00]} c5 {[%emt 0:00:00]} 2. Nf3 {[%emt 0:00:00]} Nc6 {[%emt 0:00:00]} 3. d4 {[%emt 0:00:00]} cxd4 {[%emt 0:00:00]} 4. Nxd4 {[%emt 0:00:00]} Nf6 {[%emt 0:00:09]} 5. Nc3 {[%emt 0:00:14]} g6 {[%emt 0:00:26]} 6. Nxc6 {[%emt 0:02:07]} dxc6 {[%emt 0:00:15]} 7. Qxd8+ {[%emt 0:00:37]} Kxd8 {[%emt 0:00:07]} 8. Bf4 {[%emt 0:01:21]} Be6 {[%emt 0:05:29]} 9. O-O-O+ {[%emt 0:01:07]} Ke8 {[%emt 0:02:49]} 10. Be2 {[%emt 0:03:42]} Bg7 {[%emt 0:01:43]} 11. Kb1 {[%emt 0:10:39]} Nd7 {[%emt 0:04:50]} 12. Be3 {[%emt 0:02:32]} Bxc3 {[%emt 0:24:14]} 13. bxc3 {[%emt 0:00:15]} Nb6 {[%emt 0:02:03]} 14. Bd4 {[%emt 0:10:45]} f6 {[%emt 0:04:23]} 15. f4 {[%emt 0:22:16]} h5 {[%emt 0:22:32]} 16. Rhe1 {[%emt 0:13:30]} Kf7 {[%emt 0:06:23]} 17. Bd3 {[%emt 0:20:29]} Rac8 {[%emt 0:10:46]} 18. f5 {[%emt 0:05:17]} gxf5 {[%emt 0:00:19]} 19. exf5 {[%emt 0:00:05]} Bd5 {[%emt 0:00:08]} 20. Bc5 {[%emt 0:02:59]} Rce8 {[%emt 0:01:17]} 21. Bxb6 {[%emt 0:01:41]} axb6 {[%emt 0:00:08]} 22. c4 {[%emt 0:00:43]} Bxg2 {[%emt 0:00:53]} 23. Rd2 {[%emt 0:00:11]} Rhg8 {[%emt 0:05:11]} 24. Be2 {[%emt 0:00:38]} Rh8 {[%emt 0:04:38]} 25. Bd3 {[%emt 0:00:45]} Rhg8 {[%emt 0:00:05]} 26. Be2 {[%emt 0:00:12]} Rh8 {[%emt 0:00:05]} 27. c5 {[%emt 0:00:46]} Bd5 {[%emt 0:02:51]} 28. cxb6 {[%emt 0:00:24]} Ra8 {[%emt 0:00:46]} 29. c4 {[%emt 0:00:31]} Be4+ {[%emt 0:00:02]} 30. Bd3 {[%emt 0:00:17]} Bxd3+ {[%emt 0:00:05]} 31. Rxd3 {[%emt 0:00:03]} Rad8 {[%emt 0:01:11]} 32. Rde3 {[%emt 0:00:55]} Rhe8 {[%emt 0:00:16]} 33. Kc2 {[%emt 0:00:18]} Rd4 {[%emt 0:00:38]} 34. Kc3 {[%emt 0:01:05]} Rf4 {[%emt 0:00:25]} 35. Rd3 {[%emt 0:00:13]} Rxf5 {[%emt 0:01:05]} 36. Rd7 {[%emt 0:00:05]} Rb8 {[%emt 0:00:46]} 37. Rexe7+ {[%emt 0:00:17]} Kg6 {[%emt 0:00:10]} 38. Rg7+ {[%emt 0:00:52]} Kh6 {[%emt 0:00:05]} 39. h4 {[%emt 0:00:46]} Ra5 {[%emt 0:00:48]} 40. Rh7+ {[%emt 0:00:00]} 1-0

[Event "EYCC Girls-U16 2019"]
[Site "Bratislava"]
[Date "2019.08.02"]
[Round "1.21"]
[White "Djordjevic, Nevena"]
[Black "Dylag, Emilia"]
[Result "0-1"]
[ECO "D70"]
[WhiteElo "1716"]
[BlackElo "2099"]
[Annotator "NA"]
[PlyCount "62"]
[EventDate "2019.08.02"]
[EventType "swiss"]
[EventCountry "SVK"]
[SourceTitle "playchess.com"]
[Source "ChessBase"]
[SourceQuality "1"]
[TimeControl "40/5400+30:1800+30"]

1. d4 {[%emt 0:00:00]} Nf6 {[%emt 0:00:00]} 2. c4 {[%emt 0:00:00]} g6 {[%emt 0:00:00]} 3. Nf3 {[%emt 0:00:00]} Bg7 {[%emt 0:00:10]} 4. Bf4 {[%emt 0:00:20]} d6 {[%emt 0:00:28]} 5. h3 {[%emt 0:00:10]} O-O {[%emt 0:00:41]} 6. Nc3 {[%emt 0:00:41]} Nfd7 {[%emt 0:01:11]} 7. e3 {[%emt 0:02:50]} e5 {[%emt 0:01:17]} 8. Bh2 {[%emt 0:04:00]} Nc6 {[%emt 0:01:43]} 9. Be2 {[%emt 0:02:22]} f5 {[%emt 0:01:44]} 10. O-O {[%emt 0:04:48]} e4 {[%emt 0:05:00]} 11. Nd2 {[%emt 0:02:21]} Nf6 {[%emt 0:03:45]} 12. Rb1 {[%emt 0:12:35]} g5 {[%emt 0:15:50]} 13. b4 {[%emt 0:10:22]} Ne7 {[%emt 0:06:05]} 14. c5 {[%emt 0:08:02]} d5 {[%emt 0:09:38]} 15. Nb5 {[%emt 0:09:15]} Ne8 {[%emt 0:00:49]} 16. Qb3 {[%emt 0:08:41]} Kh8 {[%emt 0:05:03]} 17. f3 {[%emt 0:05:10]} a6 {[%emt 0:13:17]} 18. Nc3 {[%emt 0:04:14]} Nf6 {[%emt 0:03:53]} 19. fxe4 {[%emt 0:04:57]} dxe4 {[%emt 0:02:13]} 20. Bc4 {[%emt 0:06:25]} b5 {[%emt 0:06:28]} 21. Be6 {[%emt 0:04:16]} Bd7 {[%emt 0:06:18]} 22. Rbd1 {[%emt 0:05:13]} Qc8 {[%emt 0:01:22]} 23. Bxd7 {[%emt 0:00:58]} Qxd7 {[%emt 0:00:14]} 24. a4 {[%emt 0:01:27]} Nfd5 {[%emt 0:01:14]} 25. Nxd5 {[%emt 0:00:55]} Nxd5 {[%emt 0:00:07]} 26. a5 {[%emt 0:01:44]} f4 {[%emt 0:04:35]} 27. c6 {[%emt 0:01:08]} Qd8 {[%emt 0:01:29]} 28. Rfe1 {[%emt 0:00:32]} Nxe3 {[%emt 0:01:03]} 29. Rc1 {[%emt 0:00:23]} Qxd4 {[%emt 0:00:26]} 30. Nf1 {[%emt 0:00:36]} Ng4+ {[%emt 0:01:27]} 31. Kh1 {[%emt 0:00:16]} Nf2+ {[%emt 0:00:07]} 0-1

[Event "EYCC Girls-U16 2019"]
[Site "Bratislava"]
[Date "2019.08.02"]
[Round "1.22"]
[White "Srdanovic, Jovana"]
[Black "Koksa, Jelena"]
[Result "1-0"]
[ECO "D20"]
[WhiteElo "1975"]
[BlackElo "1781"]
[Annotator "NA"]
[PlyCount "63"]
[EventDate "2019.08.02"]
[EventType "swiss"]
[EventCountry "SVK"]
[SourceTitle "playchess.com"]
[Source "ChessBase"]
[SourceQuality "1"]
[TimeControl "40/5400+30:1800+30"]

1. d4 {[%emt 0:00:00]} d5 {[%emt 0:00:00]} 2. c4 {[%emt 0:00:00]} dxc4 {[%emt 0:00:02]} 3. e3 {[%emt 0:00:00]} a6 {[%emt 0:00:09]} 4. Bxc4 {[%emt 0:00:07]} e6 {[%emt 0:00:34]} 5. Nf3 {[%emt 0:00:47]} b5 {[%emt 0:00:17]} 6. Be2 {[%emt 0:01:56]} Bb7 {[%emt 0:00:24]} 7. O-O {[%emt 0:00:09]} Nf6 {[%emt 0:00:38]} 8. a4 {[%emt 0:05:07]} b4 {[%emt 0:10:35]} 9. a5 {[%emt 0:04:53]} c5 {[%emt 0:04:36]} 10. dxc5 {[%emt 0:02:19]} Qxd1 {[%emt 0:00:29]} 11. Rxd1 {[%emt 0:00:08]} Bxc5 {[%emt 0:00:07]} 12. Nbd2 {[%emt 0:06:42]} Nc6 {[%emt 0:03:40]} 13. Nb3 {[%emt 0:00:35]} Be7 {[%emt 0:00:34]} 14. Bd2 {[%emt 0:02:26]} O-O {[%emt 0:02:46]} 15. Rdc1 {[%emt 0:02:38]} Nd7 {[%emt 0:03:12]} 16. Ne1 {[%emt 0:05:19]} Rfd8 {[%emt 0:11:41]} 17. Nd3 {[%emt 0:07:51]} Rac8 {[%emt 0:12:50]} 18. Be1 {[%emt 0:00:47]} Bd6 {[%emt 0:13:03]} 19. Ra4 {[%emt 0:03:08]} Nce5 {[%emt 0:11:38]} 20. Nxb4 {[%emt 0:13:04]} Rxc1 {[%emt 0:05:12]} 21. Nxc1 {[%emt 0:00:09]} Rc8 {[%emt 0:03:46]} 22. Ra1 {[%emt 0:02:46]} Nc4 {[%emt 0:03:22]} 23. Bxc4 {[%emt 0:12:58]} Rxc4 {[%emt 0:00:06]} 24. Nca2 {[%emt 0:00:38]} Bc7 {[%emt 0:05:51]} 25. Nd3 {[%emt 0:01:35]} Be4 {[%emt 0:04:58]} 26. b3 {[%emt 0:00:42]} Rc2 {[%emt 0:01:18]} 27. Nab4 {[%emt 0:00:09]} Re2 {[%emt 0:00:41]} 28. Kf1 {[%emt 0:00:24]} Bxd3 {[%emt 0:00:07]} 29. Nxd3 {[%emt 0:00:04]} Rc2 {[%emt 0:00:06]} 30. Nb4 {[%emt 0:00:11]} Rb2 {[%emt 0:01:44]} 31. Nxa6 {[%emt 0:00:05]} Be5 {[%emt 0:00:19]} 32. Rd1 {[%emt 0:00:10]} 1-0

[Event "EYCC Girls-U16 2019"]
[Site "Bratislava"]
[Date "2019.08.02"]
[Round "1.23"]
[White "Golsta, Ramona"]
[Black "Jarocka, Liwia"]
[Result "0-1"]
[ECO "A45"]
[WhiteElo "1836"]
[BlackElo "2102"]
[Annotator "NA"]
[PlyCount "50"]
[EventDate "2019.08.02"]
[EventType "swiss"]
[EventCountry "SVK"]
[SourceTitle "playchess.com"]
[Source "ChessBase"]
[SourceQuality "1"]
[TimeControl "40/5400+30:1800+30"]

1. d4 {[%emt 0:00:00]} Nf6 {[%emt 0:00:00]} 2. Nc3 {[%emt 0:00:14]} d5 {[%emt 0:00:00]} 3. Bf4 {[%emt 0:00:15]} a6 {[%emt 0:01:18]} 4. e3 {[%emt 0:00:48]} e6 {[%emt 0:01:11]} 5. Bd3 {[%emt 0:02:30]} Bd6 {[%emt 0:01:05]} 6. Nf3 {[%emt 0:01:13]} c5 {[%emt 0:03:58]} 7. O-O {[%emt 0:04:02]} c4 {[%emt 0:14:31]} 8. Be2 {[%emt 0:00:12]} b5 {[%emt 0:00:29]} 9. a3 {[%emt 0:04:18]} Nc6 {[%emt 0:01:44]} 10. b3 {[%emt 0:04:44]} O-O {[%emt 0:06:43]} 11. Bg3 {[%emt 0:09:29]} Bxg3 {[%emt 0:04:20]} 12. hxg3 {[%emt 0:00:28]} Rb8 {[%emt 0:07:54]} 13. bxc4 {[%emt 0:06:00]} bxc4 {[%emt 0:02:17]} 14. Re1 {[%emt 0:06:25]} Qc7 {[%emt 0:07:44]} 15. Bf1 {[%emt 0:04:12]} Bb7 {[%emt 0:04:16]} 16. Ne2 {[%emt 0:05:26]} Ne4 {[%emt 0:02:25]} 17. Nd2 {[%emt 0:04:02]} Nd6 {[%emt 0:06:09]} 18. Nf4 {[%emt 0:01:32]} Ne7 {[%emt 0:02:57]} 19. Qg4 {[%emt 0:04:09]} Bc8 {[%emt 0:05:59]} 20. Qg5 {[%emt 0:04:46]} Rb2 {[%emt 0:06:45]} 21. Reb1 {[%emt 0:03:54]} Rxc2 {[%emt 0:03:13]} 22. Nf3 {[%emt 0:05:46]} Ne4 {[%emt 0:00:12]} 23. Qh4 {[%emt 0:00:33]} Nf5 {[%emt 0:00:35]} 24. Qh2 {[%emt 0:03:46]} Rxf2 {[%emt 0:04:19]} 25. Nh3 {[%emt 0:07:41]} Rc2 {[%emt 0:00:22]} 0-1

[Event "EYCC Girls-U16 2019"]
[Site "Bratislava"]
[Date "2019.08.02"]
[Round "1.24"]
[White "Slaba, Andrea"]
[Black "Siekanska, Zuzanna"]
[Result "1/2-1/2"]
[ECO "D35"]
[WhiteElo "1993"]
[BlackElo "1570"]
[Annotator "NA"]
[PlyCount "87"]
[EventDate "2019.08.02"]
[EventType "swiss"]
[EventCountry "SVK"]
[SourceTitle "playchess.com"]
[Source "ChessBase"]
[SourceQuality "1"]
[TimeControl "40/5400+30:1800+30"]

1. d4 {[%emt 0:00:00]} d5 {[%emt 0:00:00]} 2. c4 {[%emt 0:00:00]} e6 {[%emt 0:00:00]} 3. Nc3 {[%emt 0:00:00]} Nf6 {[%emt 0:00:00]} 4. cxd5 {[%emt 0:00:00]} exd5 {[%emt 0:00:00]} 5. Bg5 {[%emt 0:00:00]} Be7 {[%emt 0:00:26]} 6. e3 {[%emt 0:00:08]} O-O {[%emt 0:00:19]} 7. Bd3 {[%emt 0:00:49]} Nbd7 {[%emt 0:00:32]} 8. Nge2 {[%emt 0:00:54]} b6 {[%emt 0:01:20]} 9. O-O {[%emt 0:00:40]} Bb7 {[%emt 0:00:39]} 10. Ng3 {[%emt 0:03:56]} h6 {[%emt 0:01:38]} 11. Bxf6 Nxf6 {[%emt 0:00:28]} 12. Nf5 {[%emt 0:00:23]} c5 {[%emt 0:03:48]} 13. Nxe7+ {[%emt 0:05:22]} Qxe7 {[%emt 0:00:10]} 14. dxc5 {[%emt 0:01:21]} bxc5 {[%emt 0:00:27]} 15. Rc1 {[%emt 0:01:12]} Rfd8 {[%emt 0:06:11]} 16. Qe2 {[%emt 0:05:08]} Qe5 {[%emt 0:04:33]} 17. b3 {[%emt 0:04:50]} Rac8 {[%emt 0:06:12]} 18. Na4 {[%emt 0:04:22]} Nd7 {[%emt 0:06:54]} 19. Rfe1 {[%emt 0:05:34]} Qd6 {[%emt 0:10:21]} 20. Red1 {[%emt 0:07:29]} Nb6 {[%emt 0:03:33]} 21. Nc3 {[%emt 0:00:39]} Qc6 {[%emt 0:03:29]} 22. f3 {[%emt 0:05:35]} Qe6 {[%emt 0:04:38]} 23. Re1 {[%emt 0:02:43]} Re8 {[%emt 0:06:39]} 24. Qc2 {[%emt 0:01:49]} Qf6 {[%emt 0:03:45]} 25. Bf5 {[%emt 0:07:25]} Rc6 {[%emt 0:05:46]} 26. e4 {[%emt 0:03:28]} d4 {[%emt 0:04:17]} 27. Nd5 {[%emt 0:01:02]} Qd6 {[%emt 0:00:35]} 28. Qd2 {[%emt 0:06:45]} Bc8 {[%emt 0:02:28]} 29. Bxc8 {[%emt 0:07:23]} Rexc8 {[%emt 0:00:03]} 30. Nxb6 {[%emt 0:01:24]} axb6 {[%emt 0:00:20]} 31. Qd3 {[%emt 0:00:16]} Rb8 {[%emt 0:02:37]} 32. a4 {[%emt 0:00:04]} Rc7 {[%emt 0:00:29]} 33. g3 {[%emt 0:01:01]} Qd7 {[%emt 0:01:08]} 34. Red1 {[%emt 0:03:32]} b5 {[%emt 0:02:35]} 35. b4 {[%emt 0:00:49]} bxa4 {[%emt 0:00:40]} 36. bxc5 {[%emt 0:00:05]} Rb3 {[%emt 0:03:40]} 37. Qxd4 {[%emt 0:00:15]} Qxd4+ {[%emt 0:00:11]} 38. Rxd4 {[%emt 0:00:01]} a3 {[%emt 0:00:26]} 39. Ra4 {[%emt 0:03:41]} Rxf3 {[%emt 0:00:25]} 40. Kg2 {[%emt 0:00:00]} Rb3 {[%emt 0:00:00]} 41. Kh3 {[%emt 0:01:21]} Rb5 {[%emt 0:02:04]} 42. Rxa3 {[%emt 0:00:06]} Rbxc5 {[%emt 0:00:06]} 43. Rxc5 {[%emt 0:00:08]} Rxc5 {[%emt 0:00:09]} 44. Kg4 {[%emt 0:00:26]} 1/2-1/2